Cogmind - Beta 15 @@@ ROGUE MODE // 2025.09.11 @ 17:18:13 Player: Crafthog Result: Smashed by cave-in Performance ------------- Evolutions (2) 1000 Regions Visited (6) 1200 Robots Destroyed (54) 270 Value Destroyed (1433) 1433 Prototype IDs (25) 500 Alien Tech Used (0) 0 Bonus (308) 308 TOTAL SCORE: 4711 Bonus ------- High Alert Combat Kills 11 Aligned with FarCom 300 Friendly Fire -3 Cogmind --------- Core Integrity 0/550 Matter 300/300 Energy 100/100 System Corruption 22% Temperature Danger (427) Movement Core (50) Location -8/Materials Parts ------- > --- POWER (2) -------- (None) > --- PROPULSION (3) --- (None) > --- UTILITY (3) ------ (None) > --- WEAPON (3) ------- (None) > --- INVENTORY (5) ---- (None) Peak State ------------ > --- POWER ------------ Light Nuclear Core Light Nuclear Core > --- PROPULSION ------- Wheel Wheel Wheel > --- UTILITY ---------- Improved Heat Sink Medium Storage Unit Improved Signal Interpreter > --- WEAPON ----------- Beam Rifle Pulse Rifle Latent Energy Streamer > --- INVENTORY -------- Light Nuclear Core Heat Sink Large Battery EM Pulse Cannon Particle Cannon [Rating: 32] Favorites ----------- Power Ion Engine Engine Ion Engine Power Core Light Nuclear Core Propulsion Aluminum Leg Treads Light Treads Leg Aluminum Leg Wheel Wheel Utility Small Storage Unit Device Improved Heat Sink Storage Small Storage Unit Processor Signal Interpreter Weapon Beam Rifle Energy Gun Beam Rifle Energy Cannon Latent Energy Streamer Ballistic Gun Light Assault Rifle Build | -11 -10 -9 -9 -9 -8 -8 ------- Run | Yrd Mat Mat Min Exi Min Mat Slots Evolved 4 | . . 2 . . . 2 Power 1 | . . . . . . 1 Propulsion 1 | . . . . . . 1 Utility 1 | . . 1 . . . . Weapon 1 | . . 1 . . . . Parts Attached 48 | 7 11 9 . 1 . 20 Power 7 | 1 1 . . . . 5 Engine 3 | 1 1 . . . . 1 Core 4 | . . . . . . 4 Reactor . | . . . . . . . Propulsion 12 | 2 3 2 . . . 5 Treads 1 | . . . . . . 1 Leg 8 | 2 3 2 . . . 1 Wheel 3 | . . . . . . 3 Hover . | . . . . . . . Flight . | . . . . . . . Utility 9 | 2 2 1 . . . 4 Device 3 | 1 . 1 . . . 1 Storage 4 | 1 1 . . . . 2 Processor 2 | . 1 . . . . 1 Hackware . | . . . . . . . Protection . | . . . . . . . Artifact . | . . . . . . . Weapon 20 | 2 5 6 . 1 . 6 Energy Gun 9 | . 3 3 . . . 3 Energy Cannon 7 | . . 3 . 1 . 3 Ballistic Gun 4 | 2 2 . . . . . Ballistic Cannon . | . . . . . . . Launcher . | . . . . . . . Special Weapon . | . . . . . . . Impact Weapon . | . . . . . . . Slashing Weapon . | . . . . . . . Piercing Weapon . | . . . . . . . Special Melee Weapon . | . . . . . . . Unidentified Prototypes . | . . . . . . . Parts Lost 23 | . 2 . . . . 21 Power 5 | . . . . . . 5 Propulsion 6 | . . . . . . 6 Utility 3 | . . . . . . 3 Weapon 9 | . 2 . . . . 7 Highest Loss Streak 13 | . 1 . . . . 13 To Critical Strikes . | . . . . . . . Average Backups 6 | 1 6 7 8 8 7 6 Power 1 | . 1 1 1 1 1 2 Propulsion . | . . . 1 1 1 . Utility 2 | . 2 2 2 2 2 1 Weapon 2 | . . 3 4 4 3 2 Tool/Special . | . . . . . . . Unused Backups 10 | . 1 7 . . 1 1 Power . | . . . . . . . Propulsion 1 | . . . . . . 1 Utility 2 | . 1 1 . . . . Weapon 6 | . . 5 . . 1 . Tool/Special 1 | . . 1 . . . . Average Slot Usage (%) 94 | . 99 96 100 99 100 81 Engine 10 | . 14 11 11 11 11 6 Core 2 | . . . . . . 8 Leg 20 | . 28 22 22 22 22 11 Device 9 | . 6 10 11 11 11 11 Storage 11 | . 14 11 11 11 11 8 Processor 8 | . 7 11 11 11 11 5 Energy Gun 16 | . 8 1 33 28 22 13 Energy Cannon 7 | . . 26 . 4 11 11 Ballistic Gun 4 | . 18 2 . . . . Peak Build Rating 32 | 7 9 15 15 23 23 32 Average Rating 15 | 5 7 10 15 18 23 23 On Entrance 12 | . 7 7 15 15 23 23 Naked Turns 7 | . . . . . . 7 Heaviest Build 37 | 14 15 20 20 27 27 37 Greatest Support 30 | 20 20 20 20 20 20 30 Greatest Overweight (x) 9 | 1 1 . . 1 1 9 Average Overweight (x) . | . . . . . 1 1 Largest Inventory Capacity 10 | 8 8 8 8 8 8 10 Average Capacity 7 | 7 8 8 8 8 8 7 Most Carried 10 | 4 8 8 8 8 8 10 Average Carried 6 | 1 6 7 8 7 7 6 Final Capacity 8 | 8 8 8 8 8 8 5 Final Carried 8 | 1 7 8 8 8 8 . Class Distribution -------------------- 40% | Gunner 21% | Mutant 19% | Skirmisher 9% | Scavenger-Mutant 8% | Scavenger-Skirmisher Dominant Class ---------------- Mutant | -10/Materials Gunner | -9/Materials Gunner | -9/Mines Gunner | -9/Exiles Skirmisher | -8/Mines Skirmisher | -8/Materials Resources | -11 -10 -9 -9 -9 -8 -8 ----------- Run | Yrd Mat Mat Min Exi Min Mat Matter Collected 886 | 57 484 60 30 . 14 241 Remotely . | . . . . . . . Salvage Created 2135 | 23 481 201 75 . 69 1286 Parts 117 | 5 43 11 . . 2 56 Haulers Intercepted 3 | . . . . . . 3 Recyclers Shooed . | . . . . . . . Parts Field Recycled . | . . . . . . . Retrieved Matter . | . . . . . . . Parts Self-Destructed . | . . . . . . . Prevented . | . . . . . . . Kills | -11 -10 -9 -9 -9 -8 -8 ------- Run | Yrd Mat Mat Min Exi Min Mat Combat Hostiles Destroyed 35 | . 13 4 . . . 18 Guns 19 | . 13 . . . . 6 Cannons 7 | . . 4 . . . 3 AOE 8 | . . . . . . 8 Classes Destroyed 11 | 1 5 1 . . . 4 Worker 6 | . 1 . . . 1 4 Builder 2 | . . . . . . 2 Tunneler 3 | 1 1 . . . 1 . Hauler 3 | . . . . . . 3 Recycler 2 | . . . . . . 2 Operator 1 | . 1 . . . . . Watcher 2 | . 2 . . . . . Swarmer 9 | . 6 . . . . 3 Grunt 19 | . 7 2 . . . 10 Sentry 6 | . . 2 . . . 4 Hunter 1 | . . . . . . 1 Best Kill Streak 8 | 1 3 2 . . 2 8 Combat Bots Only 4 | . 3 2 . . . 4 Max Kills in Single Turn 5 | 1 1 1 . . 2 5 Gunslinging . | . . . . . . . Exploded 3 | . . . . . . 3 Melee . | . . . . . . . Uniques/NPCs Destroyed . | . . . . . . . Combat | -11 -10 -9 -9 -9 -8 -8 -------- Run | Yrd Mat Mat Min Exi Min Mat Hostile Shots Fired 262 | . 110 9 1 . . 142 Missed 56 | . 29 1 . . . 26 Hits 206 | . 81 8 1 . . 116 Projectile 206 | . 81 8 1 . . 116 Critical Strikes 4 | . 1 . . . . 3 Damage Taken 3093 | . 787 114 12 . 72 2108 Core 750 | . 156 13 . . . 581 Absorbed by Shields . | . . . . . . . Core Remaining (%) 77 | 100 37 . . . 96 . Volleys Fired 138 | 7 66 6 8 . 2 49 Largest 3 | 2 2 3 3 . 3 3 Hottest 201 | 40 105 180 168 . 172 201 Shots Fired 287 | 14 123 18 24 . 6 102 Gun 225 | 14 123 . 24 . 4 60 Cannon 62 | . . 18 . . 2 42 Launcher . | . . . . . . . Special . | . . . . . . . Kinetic 93 | 14 79 . . . . . Thermal 179 | . 44 18 24 . 4 89 Explosive . | . . . . . . . Electromagnetic 15 | . . . . . 2 13 Robot Hit Streak 10 | 2 8 9 9 . 1 10 Robot Miss Streak 11 | 3 6 1 2 . 1 11 Penetration Max . | . . . . . . . Secondary Targets 3 | . 2 . . . . 1 Max Gunslinging Chain 1 | . 1 . . . . 1 Shots Hit Robots 159 | 7 67 12 13 . 2 58 Core Hits 90 | 2 34 6 9 . 1 38 Critical Kills 1 | . 1 . . . . . Critical Parts Destroyed . | . . . . . . . Critical Strikes 6 | . 1 . 2 . . 3 Burn 4 | . . . 2 . . 2 Destroy 1 | . 1 . . . . . Corrupt 1 | . . . . . . 1 Melee Attacks . | . . . . . . . Impact . | . . . . . . . Slashing . | . . . . . . . Piercing . | . . . . . . . Sneak Attacks . | . . . . . . . Combat Hostiles . | . . . . . . . Follow-up Attacks . | . . . . . . . Damage Inflicted 3978 | 66 677 209 205 . 100 2721 Guns 1570 | 66 677 . 205 . 29 593 Cannons 788 | . . 209 . . . 579 Explosions 1620 | . . . . . 71 1549 Melee . | . . . . . . . Ramming . | . . . . . . . Kinetic 555 | 66 489 . . . . . Thermal 1671 | . 188 209 205 . 29 1040 Explosive 101 | . . . . . . 101 Electromagnetic 1651 | . . . . . 71 1580 Impact . | . . . . . . . Slashing . | . . . . . . . Piercing . | . . . . . . . Highest Corruption 22 | . . . . . 8 22 Average Corruption 14 | . . . . . 5 15 Corruption Purged . | . . . . . . . Corruption Blocked . | . . . . . . . Effects 35 | . . . . . 3 32 Message Errors 10 | . . . . . . 10 Matter Fused 9 | . . . . . 1 8 Heat Flow Errors 2 | . . . . . . 2 Energy Discharges 6 | . . . . . 2 4 Parts Fused 1 | . . . . . . 1 Data Loss (minor) 3 | . . . . . . 3 Data Loss (major) 2 | . . . . . . 2 Weapon Failures 2 | . . . . . . 2 Overload Shots . | . . . . . . . Overflow Damage 273 | . . . . . 17 256 Projectiles . | . . . . . . . Explosions 273 | . . . . . 17 256 Melee . | . . . . . . . Knockbacks . | . . . . . . . Impact . | . . . . . . . Kinetic . | . . . . . . . Secondary . | . . . . . . . Self-Inflicted Damage 491 | . . . . . 72 419 Shots 6 | . . . . . 1 5 Rammed . | . . . . . . . Targets Rammed . | . . . . . . . Kicked . | . . . . . . . Crushed . | . . . . . . . Highest Temperature 568 | . 277 147 228 . 60 568 Average Temperature 139 | . 94 74 123 . 36 193 Received Heat Transfer 738 | . 204 33 6 . . 495 Effects 13 | . . . . . . 13 Shutdowns 6 | . . . . . . 6 Short Circuit 2 | . . . . . . 2 Damage (minor) 1 | . . . . . . 1 Damage (major) 3 | . . . . . . 3 Damage (core) 1 | . . . . . . 1 Siege Activations . | . . . . . . . Martial Activations . | . . . . . . . Shielding Activations . | . . . . . . . Robots Disrupted . | . . . . . . . Combat Hostiles . | . . . . . . . Robots Corrupted 1 | . . . . . . 1 Combat Hostiles . | . . . . . . . Parts Fried 7 | . . . . . 1 6 Impact Corruptions . | . . . . . . . Robots Melted 1 | . . . . . . 1 Combat Hostiles 1 | . . . . . . 1 Parts Melted 9 | . 1 3 . . . 5 Heat Transferred 3922 | . 435 444 675 . 74 2294 Parts Sabotaged . | . . . . . . . Parts Stolen . | . . . . . . . Parts Stripped . | . . . . . . . Power Chain Reactions . | . . . . . . . Latent Energy Used 1347 | . . . . . 273 1074 LE Corruption 25 | . . . . . 6 19 Alert | -11 -10 -9 -9 -9 -8 -8 ------- Run | Yrd Mat Mat Min Exi Min Mat Maximum Alert Level 2 | . . . . . . 2 Low Security (%) 78 | 100 100 100 100 . 100 33 Level 1 20 | . . . . . . 63 Level 2 . | . . . . . . 3 Level 3 . | . . . . . . . Level 4 . | . . . . . . . Level 5 . | . . . . . . . High Security . | . . . . . . . Max Security . | . . . . . . . Peak Influence 410 | 5 64 40 9 . 34 410 Initial 24 | . . 24 9 . . . Average 82 | . 17 11 1 . 5 230 Influence Increases 1368 | 5 399 110 . . 41 813 Destroy 0b10 Robot/C 700 | . 260 80 . . . 360 Destroy 0b10 Robot/NC 95 | 5 25 . . . 10 55 Destroy Leader 180 | . 64 30 . . . 86 Successful Hack 5 | . 5 . . . . . Disable Machine 165 | . . . . . 15 150 Destroy Structure 178 | . . . . . 16 162 Lose Combat Pursuer 45 | . 45 . . . . . Influence Decreases 1045 | 5 341 144 24 . 41 490 Entered New Map 49 | . . 34 15 . . . Time Decay 766 | 5 321 110 9 . 41 280 Lost Part 230 | . 20 . . . . 210 Squads Dispatched 9 | . 2 2 . . . 5 Investigation 4 | . . 2 . . . 2 Extermination . | . . . . . . . Reinforcement 4 | . 2 . . . . 2 Assault . | . . . . . . . Garrison 1 | . . . . . . 1 Intercept . | . . . . . . . Searches Triggered . | . . . . . . . Construction Impeded 1 | . . . . . . 1 Haulers Reinforced . | . . . . . . . Active Scanning Responses . | . . . . . . . Cargo Convoy Interrupts . | . . . . . . . Stealth | -11 -10 -9 -9 -9 -8 -8 --------- Run | Yrd Mat Mat Min Exi Min Mat Distress Signals 7 | . 1 1 . . . 5 Communications Jammed . | . . . . . . . Distress Signals . | . . . . . . . Times Spotted 57 | . 21 6 2 . . 28 Peak Tracking Total 9 | . 4 2 2 . . 9 Tactical Retreats 2 | . 2 . . . . . Traps | -11 -10 -9 -9 -9 -8 -8 ------- Run | Yrd Mat Mat Min Exi Min Mat Traps Triggered 3 | . 1 1 . . . 1 Indirectly . | . . . . . . . Trap Hack Attempts . | . . . . . . . Triggered . | . . . . . . . Disarmed . | . . . . . . . Reprogrammed . | . . . . . . . Reused . | . . . . . . . Traps Extracted . | . . . . . . . Installed . | . . . . . . . Triggered . | . . . . . . . Machines | -11 -10 -9 -9 -9 -8 -8 ---------- Run | Yrd Mat Mat Min Exi Min Mat Machines Disabled 11 | . . . . . 1 10 Max in Single Turn 4 | . . . . . 1 4 Machines Repaired . | . . . . . . . Machines Dismantled . | . . . . . . . Machines Sabotaged . | . . . . . . . Overloaded Fab Kills . | . . . . . . . Hacking | -11 -10 -9 -9 -9 -8 -8 --------- Run | Yrd Mat Mat Min Exi Min Mat Machines Accessed 16 | . 6 2 . 5 . 3 Terminals 9 | . 5 1 . . . 3 Fabricators . | . . . . . . . Repair Stations 1 | . . 1 . . . . Recycling Units 1 | . 1 . . . . . Scanalyzers . | . . . . . . . Garrison Access . | . . . . . . . Total Hacks 70 | . 12 3 . 50 . 5 Successful 60 | . 9 1 . 50 . . Failed 10 | . 3 2 . . . 5 Catastrophic 3 | . 2 . . . . 1 Database Lockouts . | . . . . . . . Manual 11 | . 4 1 . 1 . 5 Terminals 16 | . 10 1 . . . 5 Fabricators . | . . . . . . . Repair Stations 2 | . . 2 . . . . Recycling Units 2 | . 2 . . . . . Scanalyzers . | . . . . . . . Garrison Access . | . . . . . . . Terminal Hacks 57 | . 7 . . 50 . . Record 50 | . 1 . . 49 . . Prototype ID Bank 1 | . 1 . . . . . Branch Access Points 1 | . 1 . . . . . Emergency Access Points 1 | . 1 . . . . . Alert Level 1 | . 1 . . . . . Hauler Manifests 1 | . 1 . . . . . Patrol Navigation 1 | . 1 . . . . . Proto ID Catalog 1 | . . . . 1 . . Fabricator Hacks . | . . . . . . . Repair Station Hacks 1 | . . 1 . . . . Scan Component 1 | . . 1 . . . . Recycling Unit Hacks 2 | . 2 . . . . . Recycle Component 1 | . 1 . . . . . Process 1 | . 1 . . . . . Scanalyzer . | . . . . . . . Garrison Access Hacks . | . . . . . . . Unauthorized Hacks . | . . . . . . . Terminals . | . . . . . . . Fabricators . | . . . . . . . Repair Stations . | . . . . . . . Recycling Units . | . . . . . . . Scanalyzers . | . . . . . . . Garrison Access . | . . . . . . . Data Cores Recovered . | . . . . . . . Used . | . . . . . . . Hacking Detections 5 | . 3 1 . . . 1 Full Trace Events 1 | . . . . . . 1 Feedback Events . | . . . . . . . Feedback Blocked . | . . . . . . . Robot Schematics Acquired . | . . . . . . . Robots Built . | . . . . . . . Authchips . | . . . . . . . Time . | . . . . . . . Total Robot Build Rating . | . . . . . . . Part Schematics Acquired . | . . . . . . . Parts Built . | . . . . . . . Authchips . | . . . . . . . Time . | . . . . . . . Total Part Build Rating . | . . . . . . . Parts Repaired . | . . . . . . . Time . | . . . . . . . Parts Recycled 1 | . 1 . . . . . Recycled Matter 202 | . 202 . . . . . Retrieved Matter . | . . . . . . . Retrieved Components . | . . . . . . . Parts Scanalyzed . | . . . . . . . Part Schematics Acquired . | . . . . . . . Parts Damaged . | . . . . . . . Bothacking | -11 -10 -9 -9 -9 -8 -8 ------------ Run | Yrd Mat Mat Min Exi Min Mat Used RIF Installer . | . . . . . . . Robots Hacked . | . . . . . . . Non-combat . | . . . . . . . Combat . | . . . . . . . Robot Hacks Applied . | . . . . . . . Relay Couplers Released . | . . . . . . . Fabnet Peak Effective % . | . . . . . . . Robots Rewired . | . . . . . . . Allies Hacked . | . . . . . . . Hacks Repelled . | . . . . . . . Allies | -11 -10 -9 -9 -9 -8 -8 -------- Run | Yrd Mat Mat Min Exi Min Mat Total Allies . | . . . . . . . Largest Group . | . . . . . . . Highest-Rated Group . | . . . . . . . Highest-Rated Ally . | . . . . . . . Total Orders . | . . . . . . . Ally Attacks . | . . . . . . . Total Damage . | . . . . . . . Kills . | . . . . . . . Allies Corrupted . | . . . . . . . Allies Melted . | . . . . . . . Intel | -11 -10 -9 -9 -9 -8 -8 ------- Run | Yrd Mat Mat Min Exi Min Mat Active Infowar (turns) 478 | 15 463 . . . . . Seismic 478 | 15 463 . . . . . Robot Analysis Total . | . . . . . . . Derelict Logs Recovered 1 | . . . 1 . . . Drone Launches . | . . . . . . . Drone Recoveries . | . . . . . . . Exploration | -11 -10 -9 -9 -9 -8 -8 ------------- Run | Yrd Mat Mat Min Exi Min Mat Turns Passed 4288 | 172 1050 436 128 1201 302 999 Spaces Moved 2423 | 64 607 281 86 858 155 372 Core 33 | 20 . . . . . 13 Treads 8 | . . . . . . 8 Legs 2294 | 44 607 281 86 858 155 263 Wheels 88 | . . . . . . 88 Hover . | . . . . . . . Flight . | . . . . . . . Fastest Speed 50 | 50 120 120 120 120 190 95 Average Speed 145 | 111 120 120 120 139 190 210 Slowest Speed 500 | 120 190 120 120 190 190 500 Overloaded Moves . | . . . . . . . Propulsion Burnouts . | . . . . . . . Robots Hopped . | . . . . . . . Potential Cave-ins 1 | . . . . . . 1 Cave-ins Triggered 2 | . . . . . . 2 Exploration Rate (%) 42 | 5 72 24 30 92 39 34 Regions Visited 6 Branch Regions 3 Pre-discovered Areas 1 | . . . . 1 . . Known Exits Taken 5 | . 1 1 1 1 1 . Unknown Exits Taken 1 | 1 . . . . . . Scrap Searched . | . . . . . . . Spaces Dug . | . . . . . . . Terrain Destroyed 212 | . . . . . 20 192 Melee . | . . . . . . . Projectile 7 | . . . . . . 7 AOE 205 | . . . . . 20 185 Terrain Rammed . | . . . . . . . Walls Destroyed . | . . . . . . . Machines Disabled . | . . . . . . . Actions | -11 -10 -9 -9 -9 -8 -8 --------- Run | Yrd Mat Mat Min Exi Min Mat Total 2964 | 152 818 375 93 862 159 505 Wait 251 | 67 103 45 . . 1 35 Move 2417 | 63 606 280 85 857 154 372 Hop . | . . . . . . . Pick Up 65 | 8 20 19 . 2 1 15 Fast Attach . | . . . . . . . Attach 43 | 7 8 7 . 1 . 20 Detach 3 | . 2 . . . . 1 Swap 10 | . 5 2 . . . 3 Drop 37 | . 8 16 . 2 1 10 Fire 138 | 7 66 6 8 . 2 49 Melee . | . . . . . . . Ram . | . . . . . . . Kick . | . . . . . . . Crush . | . . . . . . . Escape Stasis . | . . . . . . . Rewire . | . . . . . . . Trap . | . . . . . . . Miscellaneous . | . . . . . . . Route ------- -11/Scrapyard -10/Materials (discovered 4 exits: *Mat x2 / *Min x2) -9/Materials -9/Mines (discovered 2 exits: Mat / *Exi) -9/Exiles (discovered 2 exits: *Min x2) -8/Mines -8/Materials History --------- Turn | Location | Event 9 | -11/Scrapyard | Discovered new exit (range 16) 173 | -11/Scrapyard | Entered Materials 210 | -10/Materials | Discovered new exit (range 12) 312 | -10/Materials | Build established: Mutant 567 | -10/Materials | Discovered new exit (range 16) 742 | -10/Materials | Identified exit to Mines 833 | -10/Materials | Core integrity fell below 50% 1114 | -10/Materials | Discovered new exit (range 10) 1118 | -10/Materials | Build established: Scavenger-Mutant 1222 | -10/Materials | Identified exit to Materials 1223 | -10/Materials | Entered another Materials area 1223 | -9/Materials | Evolved 2 slots: Utility x1, Weapon x1 1539 | -9/Materials | Met 8R-AWN 1544 | -9/Materials | Build established: Gunner 1586 | -9/Materials | Discovered new exit (range 15) 1658 | -9/Materials | Identified exit to Mines 1659 | -9/Materials | Entered Mines 1661 | -9/Mines | Followed 8R-AWN into the Mines 1708 | -9/Mines | Assembled infested the area 1713 | -9/Mines | Assisted by a Guerilla fighting off Assembled 1769 | -9/Mines | Identified exit to Materials 1783 | -9/Mines | Discovered new exit (range 5) 1786 | -9/Mines | Identified exit to Exiles 1787 | -9/Mines | Entered Exiles 1815 | -9/Exiles | Discovered new exit (range 14) 1834 | -9/Exiles | Welcomed by 8R-AWN 1858 | -9/Exiles | Met EX-HEX 1940 | -9/Exiles | Met EX-DEC 1969 | -9/Exiles | Learned location of Zion (-6) 2011 | -9/Exiles | Met EX-BIN 2187 | -9/Exiles | Discovered new exit (range 14) 2272 | -9/Exiles | Visited The Gauntlet 2477 | -9/Exiles | Aligned with FarCom system 2479 | -9/Exiles | Given EX-Vault access code 2506 | -9/Exiles | Opened EX-Vault 2524 | -9/Exiles | Found Latent Energy Streamer 2570 | -9/Exiles | Warned to stay clear of 0b10 Research branches 2716 | -9/Exiles | Identified exit to Mines 2878 | -9/Exiles | Learned about 8R-AWN's background 2988 | -9/Exiles | Left Exiles lab with Latent Energy Streamer 2988 | -9/Exiles | Entered Mines 3087 | -8/Mines | Discovered exit to Materials (range 13) 3290 | -8/Mines | Entered Materials 3290 | -8/Materials | Evolved 2 slots: Power x1, Propulsion x1 3594 | -8/Materials | Lost 4 parts (1p2n1w) 3647 | -8/Materials | System corruption reached 10% 4146 | -8/Materials | Build established: Skirmisher 4235 | -8/Materials | Garrison activated, responded to threat 4264 | -8/Materials | Core integrity fell below 50% 4268 | -8/Materials | Crushed by falling debris 4287 | -8/Materials | Core integrity fell below 20% 4290 | -8/Materials | Crushed by falling debris 4290 | -8/Materials | Smashed by cave-in Last Messages --------------- Acquired 30 matter. Overheating: Lgt. Nuclear Core damaged (-26). U-05 Engineer lays Concrete. Destroyed Flight Unit. Power failure, Lgt. Nuclear Core shutdown. U-05 Engineer builds a Wall. S-10 Pest destroyed. Power failure, Lgt. Nuclear Core shutdown. U-05 Engineer builds a Wall. Lrg. Battery destroyed. Lgt. Nuclear Core destroyed. Overheating: Particle Cannon damaged (-9). Lgt. Nuclear Core destroyed. Overheating: Particle Cannon damaged (-6). System corrupted: Matter fused (-6). Acquired 6 matter. Particle Cannon destroyed. Overheating: Core damaged (-60). The unstable cave ceiling collapses. Crushed by falling debris. Map ----- +----------------------------------------------------+ | ?????????????????????????????????????????????????? | | ?????????????????????????????????????????????????? | | ?????????????????????????????????????########????? | | ?????????????????????????????????????# #????? | | ?????????????????????????????????????# T #????? | | ?????????????????????????????????????# #????? | | ?????????????????????????????????????# #????? | | ?????????????????????????????????????# ! #????? | | ?????????????????????????????????????# #????? | | ?????????????????????????????????????#/##/###????? | | ?????????????????????????????????????# #??????# | | ?????????????????g????????????## ????# ######## | | ?????????????????g??#####?????#""!#="# # # | | ???????????????????? =%= *% # # | | ???????????????????? ???############# # """ # | | ???????????????????? ???# # == # # """ # | | ???????????? ?????? ???# # # # """! # | | ???????????? ???? ???# # ==[ # # # | | ????????????? ? ???# # ==[ %# ##/##### | | ??????????????# """ ???? # =! *# % ## | | ??????????????# w """ #????? # # % ## | | ????????????""# """ ## #####+#####+## ## | | ?????????????"" ""% *## = | | ??????????????# |*%######## #######+## | | ??????????????# =%!%=### #?## | | ??????????????# =*Y#@# #??? """"" | | ??????????????# ##ggs# #??# """"" | | ??????????????# "#g#[# ##?# """"" | | ??????????????# "#%#*# ##### ##?# | | ??????????????# "#/#####+####### ##?####### | | ??????????????# #!= !%!!#== ##### | | ??????????????# # ! !!! # !=% !!! | | ??????????????# ?# = =+%*%[ !! ] | | ????????????? / w ?# # w! %[ =% | | ??????????? # ??# #* ##### | | ??????????? ?# ???# ###+### ## | | ???????????#??# ???############### # | | ?????????????? ??????????????????# ## | | ????????????? ???????????????????# ## | | ???????????????????????????????????# # | | ???????????????????????????????????# | | ???????????????????????????????????# | | ???????????????????????????????????# | | ???????????????????????????????????# " | | ???????????????????????????????????###### # | | ?????????????????????????????????????#?# #" | | ???????????????????????????????????????######?" | | ??????????????????????????????????????????????# | | ??????????????????????????????????????????????# | | ?????????????????????????????????????????????## | +----------------------------------------------------+ Best States ------------- Heat Dissipation 55 Energy Generation 23 Energy Capacity 420 Matter Stores 300 Matter Capacity 300 Sight Range 16 Terrain Scan Density 10 Evasion (%) 55 Recoil Reduction 1 Item Schematics ----------------- None Robot Schematics ------------------ None Fabricated ------------ Nothing Repaired ---------- Nothing Alien Tech Used ----------------- None Achievements -------------- It's Just You Librarian Novice Programmer Unlikely Earthworm Challenges ------------ None Game ------ Seed ExoskeletonSubatomicWeb Manual? 0 Play Time 01:04:39 Cumulative 5.2 hours Start 2025.09.10 @ 23:24:21 End 2025.09.11 @ 17:18:13 Sessions 1 Manual Loads 0 Difficulty Rogue Special Mode None Game No. 12 Rogue 12 Adventurer 0 Explorer 0 Win Type - Total 0 Types 0/0/0/0/0/0/0/0/0/0 Lore% 8 Gallery% 7 Achievement% 11 Wizard Run 0 Options --------- Layout 1 ASCII 0 Keyboard 0 Movement Mouse Keybinds 0 Fullscreen 1 Font 24/Smallcaps Map View 76x35 Zoom Use 0% Tactical HUD 0 Map Filters NONE Filters NONE Steam 1 RUN: 8f128269-d111-40d2-89e4-40d9fc5dea7b